lending/lending_fUSD_20251111
["ID","MTS","AMOUNT","RATE_DAILY","PERIOD"]
[393607804,1762849856231,-500.0,0.00037078,41]
[393607805,1762849856241,-3426.0,0.0003717,2]
[393607806,1762849856250,-500.0,0.00037215,41]
[393607807,1762849856261,-500.0,0.00037352,41]
[393607808,1762849856270,-170.0,0.00037489,41]
[393607809,1762849856281,-500.0,0.00038356,2]
[393607810,1762849856290,-500.0,0.00038356,2]
[393607811,1762849856300,-500.0,0.00038356,2]
[393607812,1762849856310,-500.0,0.00038356,2]
[393607813,1762849856319,-605.88926511,0.00038356,2]
[393607814,1762849856329,-615.961729,0.00039098,120]
[393607815,1762849856339,-151.0,0.00039098,30]
[393607816,1762849856348,-615.961729,0.00039098,120]
[393607817,1762849856358,-151.0,0.00039098,30]
[393607818,1762849856367,-615.961729,0.00039098,120]
[393607819,1762849856378,-615.961729,0.00039698,120]
[393607820,1762849856387,-615.961729,0.00039698,120]
[393607821,1762849856397,-151.0,0.00039698,30]
[393607822,1762849856407,-615.961729,0.00039698,120]
[393607823,1762849856419,-151.0,0.00039698,30]
[393607824,1762849856428,-615.961729,0.00039698,120]
[393607825,1762849856438,-151.0,0.00039698,30]
[393607826,1762849856447,-615.961729,0.00039698,120]
[393607827,1762849856456,-615.961732,0.00039698,120]
[393607828,1762849856466,-151.0,0.00039698,30]
[393607829,1762849856475,-3669.3913462,0.00039698,7]
[393607830,1762849856864,-500.0,0.00014999,2]
[393607831,1762849856874,-500.0,0.00014999,2]
[393607832,1762849856883,-264.13468606,0.00014999,2]
[393607833,1762849856897,-500.0,0.00014999,2]
[393607834,1762849856910,-221.60196962,0.00014999,2]
[393607835,1762849856934,-278.39803038,0.00014999,2]
[393607836,1762849856943,-500.0,0.00014999,2]
[393607837,1762849856953,-500.0,0.00014999,2]
[393607838,1762849856963,-500.0,0.00014999,2]
[393607839,1762849856972,-242.35806193,0.00014999,2]
[393607840,1762849856986,-257.64193807,0.00014999,2]
[393607841,1762849856995,-500.0,0.00014999,2]
[393607842,1762849857005,-500.0,0.00014999,2]
[393607843,1762849857015,-500.0,0.00014999,2]
[393607844,1762849857024,-500.0,0.00014999,2]
[393607845,1762849857033,-500.0,0.00014999,2]
[393607846,1762849857042,-500.0,0.00014999,2]
[393607847,1762849857052,-500.0,0.00014999,2]
[393607848,1762849857062,-500.0,0.00014999,2]
[393607849,1762849857071,-500.0,0.00014999,2]
[393607850,1762849857080,-384.44882869,0.00016438,2]
[393607851,1762849857089,-151.0,0.000249,7]
[393607852,1762849857098,-500.0,0.00035297,41]
[393607853,1762849857107,-500.0,0.00035297,41]
[393607854,1762849857119,-151.0,0.00035298,30]
[393607855,1762849857128,-500.0,0.00035434,41]
[393607856,1762849857137,-300.0,0.00035571,41]
[393607857,1762849857147,-500.0,0.00038356,2]
[393607858,1762849857157,-500.0,0.00038356,2]
[393607859,1762849857167,-151.0,0.00039098,30]
[393607860,1762849857178,-151.0,0.00039698,30]
[393607861,1762849857187,-151.0,0.00039698,30]
[393607862,1762849857199,-14672.90919324,0.00039698,7]
[393607863,1762849857211,-7683.24542656,0.00039698,7]
[393607864,1762849857229,-820.0,0.0003417,2]
[393607865,1762849857240,-500.0,0.00038356,2]
[393607866,1762849857250,-18827.32304744,0.00039698,7]
[393607867,1762849857268,-434.52540793,0.0003417,2]
[393607868,1762849857335,-464.57653378,0.0003417,2]
[393607869,1762849857355,-697.89805829,0.0003417,2]
[393607870,1762849857364,-500.0,0.00035434,41]
[393607871,1762849857374,-500.0,0.00035571,41]
[393607872,1762849857383,-500.0,0.00035708,41]
[393607873,1762849857394,-500.0,0.00035845,41]
[393607874,1762849857404,-500.0,0.00035982,41]
[393607875,1762849857413,-31.40993115,0.00036119,41]
[393607876,1762849857424,-468.59006885,0.00036119,41]
[393607877,1762849857434,-364.672,0.0003717,2]
[393607878,1762849857443,-500.0,0.00038356,2]
[393607879,1762849857453,-500.0,0.00038356,2]
[393607880,1762849857463,-500.0,0.00038356,2]
[393607881,1762849857472,-298.36693115,0.00038356,2]
[393607882,1762849857483,-201.63306885,0.00038356,2]
[393607883,1762849857493,-464.10950633,0.00038356,2]
[393607884,1762849857985,-277.70663479,0.00014999,2]
[393607885,1762849862622,-24.29336621,0.00014999,2]
[393607886,1762849862645,-129.81358721,0.00014999,2]
[393607887,1762849865435,-216.03,0.00014973,2]
[393607888,1762849866049,284.43888868,0.00016499,120]
[393607889,1762849869989,-222.29336538,0.00014973,2]
[393607890,1762849872678,-61.67663462,0.00014973,2]
[393607891,1762849872707,-96.8950554,0.00014973,2]
[393607892,1762849877843,-221.30878051,0.00014973,2]
[393607893,1762849879989,-289.34486592,0.00014973,2]
[393607894,1762849880014,-9.81106028,0.00014973,2]
[393607895,1762849882116,-257.99354202,0.00014973,2]
[393607896,1762849885707,-232.1953977,0.00014973,2]
[393607897,1762849885728,-163.99692755,0.00014973,2]
[393607898,1762849888357,-334.20877789,0.00014973,2]
[393607899,1762849889870,-1.79429456,0.00014973,2]
[393607900,1762849889896,-206.5213266,0.00014973,2]
[393607901,1762849893100,-170.27333368,0.00014973,2]
[393607902,1762849894819,-123.20533972,0.00014973,2]
[393607903,1762849894842,-95.08548284,0.00014973,2]
[393607904,1762849897006,-181.61726826,0.00014973,2]
[393607905,1762849901480,-220.44000221,0.00014973,2]
[393607906,1762849901503,-29.55999779,0.00014973,2]
[393607907,1762849904729,-134.93837748,0.00014973,2]
[393607908,1762849904754,-165.06162252,0.00014979,2]
[393607909,1762849906837,-29.93837748,0.00014979,2]
[393607910,1762849906858,-241.06101562,0.00014986,2]
[393607911,1762849908974,-321.12837123,0.00014986,2]
[393607912,1762849913282,-464.39129279,0.00014986,2]
[393607913,1762849914975,-170.17901379,0.00014986,2]
[393607914,1762849919290,-187.11921967,0.00014986,2]
[393607915,1762849920668,291.06,0.00013699,2]
[393607916,1762849920830,-300.0,0.00014986,2]
[393607917,1762849924804,-202.234572,0.00014986,2]
[393607919,1762849927868,-193.38639401,0.00014986,2]
[393607920,1762849931208,-283.23148193,0.00014986,2]
[393607921,1762849933998,-137.26863896,0.00014986,2]
[393607922,1762849934030,-14.57936104,0.00014992,2]
[393607923,1762849937230,-180.42063896,0.00014992,2]
[393607924,1762849937254,-108.36286836,0.00014998,2]
[393607925,1762849941905,-191.63713164,0.00014998,2]
[393607926,1762849941929,-370.18641279,0.00014999,2]
[393607927,1762849941954,-111.82562444,0.00014999,2]
[393607928,1762849946038,-151.55243496,0.00014999,2]
[393607929,1762849950163,-154.0,0.00014999,2]
[393607930,1762849954118,-82.6219406,0.00014999,2]
[393607931,1762849954145,-217.3780594,0.00014999,2]
[393607932,1762849957596,-282.6219406,0.00014999,2]
[393607933,1762849957618,-10.40420143,0.00014999,2]
[393607934,1762849960944,-362.60363869,0.00014999,2]
[393607935,1762849962494,-126.99215988,0.00014999,2]
[393607936,1762849962519,-72.45867155,0.00014999,2]
[393607937,1762849966202,-151.0,0.00014998,2]
[393607938,1762849967961,-166.66,0.00014998,2]
[393607939,1762849972467,-168.0,0.00014998,2]
[393607940,1762849975432,-151.0,0.00014998,2]
[393607941,1762849978139,-155.39013836,0.00014998,2]
[393607942,1762849980842,-195.0,0.00014998,2]
[393607943,1762849983621,-188.54130841,0.00014998,2]
[393607944,1762849985543,-24.40855323,0.00014998,2]
[393607945,1762849985565,-300.0,0.00014998,2]
[393607946,1762849985587,-57.89927124,0.00014998,2]
[393607947,1762849988733,-183.21754022,0.00014998,2]
[393607948,1762849991442,-58.88318854,0.00014998,2]
[393607949,1762849991656,-127.8195269,0.00014998,2]
[393607950,1762849997440,-22.1804731,0.00014998,2]
[393607951,1762849997463,-207.28492495,0.00014999,2]
[393607952,1762849998969,-220.2564035,0.00014999,2]
[393607953,1762849998991,-35.1235965,0.00014999,2]
[393607954,1762850000593,-256.51957157,0.00014999,2]
[393607955,1762850005272,-166.66,0.00014999,2]
[393607956,1762850007435,-41.69683193,0.00014999,2]
[393607957,1762850007457,-135.74378085,0.00014999,2]
[393607958,1762850009815,-273.07837283,0.00014999,2]
[393607959,1762850013319,-91.17784632,0.00014999,2]
[393607960,1762850013342,-67.32897938,0.00014999,2]
[393607961,1762850015196,-196.61655846,0.00014999,2]
[393607962,1762850016791,-151.0,0.00014999,2]
[393607963,1762850020659,-203.99818149,0.00014999,2]
[393607964,1762850020680,-89.10625134,0.00014999,2]
[393607965,1762850030596,-384.38655847,0.00014999,2]
[393607966,1762850033845,-26.50719019,0.00014999,2]
[393607967,1762850033869,-137.95771775,0.00014999,2]
[393607968,1762850035558,-302.28874854,0.00014999,2]
[393607969,1762850037138,-59.75353371,0.00014999,2]
[393607970,1762850037160,-190.24646629,0.00014999,2]
[393607971,1762850040350,-160.51980076,0.00014999,2]
[393607972,1762850045289,-149.23373295,0.00014999,2]
[393607973,1762850045314,-257.77511302,0.00014999,2]
[393607976,1762850047714,-242.22488698,0.00014999,2]
[393607977,1762850047737,-4.5003736,0.00014999,2]
[393607978,1762850049552,-151.0,0.00014999,2]
[393607979,1762850054042,-195.0,0.00014999,2]
[393607980,1762850057002,-149.4996264,0.00014999,2]
[393607981,1762850057031,-143.54984968,0.00014999,2]
[393607982,1762850060728,-222.33988732,0.00014999,2]
[393607983,1762850063999,-134.110263,0.00014999,2]
[393607984,1762850064023,-115.889737,0.00014999,2]
[393607985,1762850070241,-178.36460072,0.00014999,2]
[393607986,1762850072353,-205.74566228,0.00014999,2]
[393607987,1762850072375,-34.35667943,0.00014999,2]
[393607988,1762850077651,-240.22591771,0.00014999,2]
[393607989,1762850080408,-173.36051182,0.00014999,2]
[393607990,1762850083316,-52.05689104,0.00014999,2]
[393607991,1762850083338,-153.30146334,0.00014999,2]
[393607992,1762850085407,-199.02799582,0.00014999,2]
[393607993,1762850087179,-147.67054084,0.00014999,2]
[393607994,1762850087207,-141.8625559,0.00014999,2]
[393607995,1762850089376,-10.01956747,0.00014999,2]
[393607996,1762850089404,-235.49168399,0.00014999,2]
[393607997,1762850091080,-191.71266356,0.00014999,2]
[393607998,1762850093184,-72.79565245,0.00014999,2]
[393607999,1762850093211,-87.74434755,0.00014999,2]
[393608000,1762850096304,-207.78912186,0.00014999,2]
[393608001,1762850101057,-204.46653059,0.00014999,2]
[393608002,1762850101080,-76.31812995,0.00014999,2]
[393608003,1762850103911,-300.0,0.00014998,2]
[393608004,1762850103935,-196.76516185,0.00014998,2]
[393608005,1762850109739,-441.8887206,0.00014998,2]
[393608006,1762850112020,-168.89007832,0.00014998,2]
[393608007,1762850114390,-268.89354039,0.00014998,2]
[393608008,1762850118156,-123.56249884,0.00014998,2]
[393608009,1762850118182,-35.16398194,0.00014998,2]
[393608010,1762850120445,-258.22599039,0.00014998,2]
[393608011,1762850125171,-6.61002767,0.00014998,2]
[393608012,1762850125195,-282.25232999,0.00014999,2]
[393608013,1762850126753,-141.42954006,0.00014999,2]
[393608014,1762850126778,-60.94846163,0.00014999,2]
[393608015,1762850128859,-290.981863,0.00014999,2]
[393608016,1762850133398,-148.06967537,0.00014999,2]
[393608017,1762850133428,-143.79808011,0.00014999,2]
[393608018,1762850135069,-313.45907732,0.00014999,2]
[393608019,1762850136744,-43.39284257,0.00014999,2]
[393608020,1762850136772,-236.3723841,0.00014999,2]
[393608021,1762850141317,-176.99264016,0.00014999,2]
[393608022,1762850145957,-86.63497574,0.00014999,2]
[393608023,1762850145980,-193.13865714,0.00014999,2]
[393608024,1762850149136,-306.86134286,0.00014999,2]
[393608025,1762850149161,-85.4141949,0.00014999,2]
[393608026,1762850150789,-300.0,0.00014999,2]
[393608027,1762850152395,-180.95813511,0.00014999,2]
[393608028,1762850152442,-35.20036909,0.00014999,2]
[393608029,1762850157566,-151.0,0.00014999,2]
[393608030,1762850160182,-72.6545438,0.00014999,2]
[393608031,1762850160205,-137.8007509,0.00014999,2]
[393608032,1762850165026,-154.0,0.00014998,2]
[393608033,1762850165049,-8.18,0.00014999,2]
[393608034,1762850166755,-300.0,0.00014999,2]
[393608035,1762850166777,-81.50790527,0.00014999,2]
[393608036,1762850173336,-190.4422575,0.00014999,2]
[393608037,1762850175391,-82.06908633,0.00014999,2]
[393608038,1762850175413,-189.5765387,0.00014999,2]
[393608039,1762850176879,-185.08854538,0.00014999,2]
[393608040,1762850181594,-125.33491592,0.00014999,2]
[393608041,1762850181616,-123.07297208,0.00014999,2]
[393608042,1762850183154,-283.15824942,0.00014999,2]
[393608043,1762850185921,-93.7687785,0.00014999,2]
[393608044,1762850185943,-125.84126656,0.00014999,2]
[393608045,1762850190967,-181.34241489,0.00014999,2]
[393608046,1762850199689,-192.81631855,0.00014999,2]
[393608047,1762850199711,-2.18368145,0.00014999,2]
[393608048,1762850205359,-344.80038537,0.00014999,2]
[393608049,1762850207803,-153.01593318,0.00014999,2]
[393608050,1762850207826,-8.47406682,0.00014999,2]
[393608051,1762850209386,-231.10645961,0.00014999,2]
[393608052,1762850214248,537.92399531,0.00014899,2]
[393608053,1762850215630,-176.33,0.00014999,2]
[393608054,1762850217243,-84.08947357,0.00014999,2]
[393608055,1762850217269,-213.29300196,0.00014999,2]
[393608056,1762850218674,-286.70699804,0.00014999,2]
[393608057,1762850218703,-500.0,0.00014999,2]
[393608058,1762850218731,-500.0,0.00014999,2]
[393608059,1762850218762,-326.80210895,0.00014999,2]
[393608060,1762850218791,-500.0,0.00014999,2]
[393608061,1762850218819,-522.08413598,0.00014999,2]
[393608062,1762850223788,215.2,0.00010451,2]
[393608063,1762850223989,215.2,0.0001098,2]
[393608064,1762850224194,215.2,0.00011508,2]
[393608065,1762850224383,215.2,0.00012036,2]
[393608066,1762850224577,215.2,0.00012565,2]
[393608067,1762850224784,215.2,0.00013093,2]
[393608068,1762850225001,215.2,0.00013622,2]
[393608069,1762850225198,215.2,0.0001415,2]
[393608070,1762850225403,215.2,0.00014679,2]
[393608079,1762850285439,500.0,0.00014999,2]
[393608080,1762850285694,500.0,0.00014999,2]
[393608081,1762850285947,191.55081289,0.00014999,2]
[393608082,1762850333099,500.0,0.00014999,2]
[393608084,1762850337297,573.75,0.000215,120]
[393608085,1762850344751,500.0,0.00014999,2]
[393608086,1762850344991,500.0,0.00014999,2]
[393608089,1762850355379,-250.0,0.00015079,2]
[393608090,1762850355402,-13.81796968,0.00015082,2]
[393608091,1762850358204,-181.18203032,0.00015082,2]
[393608092,1762850358226,-103.44700363,0.00015086,2]
[393608093,1762850368418,100.47270117,0.00014999,2]
[393608094,1762850368441,316.08607294,0.00014999,2]
[393608095,1762850424945,500.0,0.00014999,2]
[393608096,1762850425184,500.0,0.00014999,2]
[393608097,1762850425419,500.0,0.00014999,2]
[393608098,1762850438704,500.0,0.00014999,2]
[393608099,1762850438965,503.02467879,0.00014999,2]
[393608100,1762850488429,-397.25377879,0.00015086,2]
[393608101,1762850523494,371.25732865,0.00014987,2]
[393608102,1762850564019,-151.02248491,0.00015006,2]
[393608103,1762850565511,-201.50342325,0.00015006,2]
[393608104,1762850596041,-300.00808102,0.00015006,2]
[393608106,1762850599868,-273.66125096,0.00015006,2]
[393608107,1762850601549,-273.80475986,0.00015006,2]
[393608108,1762850601574,-70.28901308,0.00015007,2]
[393608109,1762850603335,-124.71098692,0.00015007,2]
[393608110,1762850603358,-456.03103406,0.00015007,2]
[393608113,1762850745934,10000.01,0.00014931,2]
[393608114,1762850745958,10000.01,0.00014931,2]
[393608115,1762850745980,10000.01,0.00014931,2]
[393608116,1762850746002,4600.51959563,0.00014931,2]
[393608120,1762850774751,653.41,0.00013699,2]
[393608122,1762850826392,4746.08040437,0.00014931,2]
[393608123,1762850826415,10000.01,0.00014931,2]
[393608124,1762850826438,10000.01,0.00014931,2]
[393608125,1762850826461,10000.01,0.00014931,2]
[393608126,1762850826483,10000.01,0.00014931,2]
[393608127,1762850826505,7291.23889683,0.00014931,2]
[393608128,1762850828992,793.46197458,0.00014931,2]
[393608129,1762850832718,247.50488576,0.00014906,2]
[393608130,1762850838724,247.50488576,0.00014919,2]
[393608131,1762850844733,247.50488576,0.00014931,2]
[393608133,1762850959786,437.58151324,0.00014931,2]
[393608134,1762851004259,283.17,0.00014997,2]
[393608135,1762851005468,2080.13,0.00014997,2]
[393608137,1762851028680,-355.05,0.00015,2]
[393608138,1762851030901,-157.81361727,0.00015,2]
[393608141,1762851031929,-942.94576868,0.00015,2]
[393608142,1762851031938,-105.35532901,0.00015004,2]
[393608143,1762851031950,-979.64467099,0.00015004,2]
[393608144,1762851031959,-300.0,0.00015004,2]
[393608145,1762851031969,-1200.0,0.00015004,2]
[393608146,1762851031978,-300.0,0.00015004,2]
[393608147,1762851031987,-2500.0,0.00015004,2]
[393608148,1762851031996,-195.0,0.00015004,2]
[393608149,1762851032006,-300.0,0.00015005,2]
[393608150,1762851032015,-195.0,0.00015005,2]
[393608151,1762851032024,-2500.0,0.00015005,2]
[393608152,1762851032035,-212.84302275,0.00015005,2]
[393608153,1762851032046,-10356.45913412,0.00015005,2]
[393608154,1762851032055,-300.0,0.00015005,2]
[393608155,1762851032065,-300.0,0.00015005,2]
[393608156,1762851032074,-300.0,0.00015005,2]
[393608157,1762851032084,-250.0,0.00015006,2]
[393608158,1762851032094,-193.81619264,0.00015006,2]
[393608159,1762851032104,-500.0,0.00015006,2]
[393608160,1762851032115,-170.95311679,0.00015006,2]
[393608161,1762851032124,-500.0,0.00015006,2]
[393608162,1762851032134,-500.0,0.00015006,2]
[393608163,1762851032144,-500.0,0.00015006,2]
[393608164,1762851032154,-500.0,0.00015006,2]
[393608165,1762851032163,-500.0,0.00015006,2]
[393608166,1762851032173,-500.0,0.00015006,2]
[393608167,1762851032182,-500.0,0.00015006,2]
[393608168,1762851032191,-500.0,0.00015006,2]
[393608169,1762851032201,-500.0,0.00015006,2]
[393608170,1762851032210,-500.0,0.00015006,2]
[393608171,1762851032219,-104.19237341,0.00015006,2]
[393608172,1762851032238,-395.80762659,0.00015006,2]
[393608174,1762851032247,-500.0,0.00015006,2]
[393608175,1762851032260,-500.0,0.00015006,2]
[393608177,1762851032269,-429.25594879,0.00015006,2]
[393608181,1762851032291,-70.74405121,0.00015006,2]
[393608183,1762851032301,-500.0,0.00015006,2]
[393608185,1762851032310,-195.48379541,0.00015006,2]
[393608187,1762851037778,-111.13293317,0.00015006,2]
[393608188,1762851037787,-500.0,0.00015006,2]
[393608189,1762851037797,-500.0,0.00015006,2]
[393608190,1762851037806,-500.0,0.00015006,2]
[393608191,1762851037816,-500.0,0.00015006,2]
[393608192,1762851037825,-500.0,0.00015006,2]
[393608193,1762851037835,-500.0,0.00015006,2]
[393608194,1762851037845,-500.0,0.00015006,2]
[393608195,1762851037857,-500.0,0.00015006,2]
[393608196,1762851037867,-351.59781621,0.00015006,2]
[393608197,1762851037880,-500.0,0.00015006,2]
[393608198,1762851037890,-500.0,0.00015006,2]
[393608199,1762851037900,-435.09877089,0.00015006,2]
[393608200,1762851037909,-319.95081928,0.00015006,2]
[393608201,1762851037920,-452397.18328234,0.00015007,2]
[393608202,1762851037930,-1153.67,0.00015078,2]
[393608203,1762851037939,-215.2,0.00015207,2]
[393608204,1762851037948,-1862.5,0.00015351,2]
[393608205,1762851037957,-215.2,0.00015736,2]
[393608206,1762851037967,-2632.9407,0.00015945,2]
[393608207,1762851037976,-868.79,0.00015968,2]
[393608208,1762851037986,-151.0,0.00015977,2]
[393608209,1762851037995,-203.17721759,0.00015977,2]
[393608210,1762851038005,-151.0,0.00015977,2]
[393608211,1762851038015,-151.0,0.00015977,2]
[393608212,1762851038024,-151.0,0.00015977,2]
[393608213,1762851038035,-151.0,0.00015977,2]
[393608214,1762851038044,-151.0,0.00015977,2]
[393608215,1762851038053,-151.0,0.00015977,2]
[393608216,1762851038063,-151.0,0.00015977,2]
[393608217,1762851038072,-151.0,0.00015977,2]
[393608218,1762851038081,-151.0,0.00015977,2]
[393608219,1762851038091,-151.0,0.00015977,2]
[393608220,1762851038102,-151.0,0.00015977,2]
[393608221,1762851038111,-151.0,0.00015977,2]
[393608222,1762851038121,-151.0,0.00015977,2]
[393608223,1762851038131,-151.0,0.00015977,2]
[393608224,1762851038141,-151.0,0.00015977,2]
[393608226,1762851038151,-151.0,0.00015977,2]
[393608228,1762851038161,-151.0,0.00015977,2]
[393608229,1762851038170,-151.0,0.00015977,2]
[393608230,1762851038179,-151.0,0.00015977,2]
[393608231,1762851038188,-200.0,0.00015977,2]
[393608232,1762851038198,-151.0,0.00015977,2]
[393608233,1762851038208,-151.0,0.00015977,2]
[393608234,1762851038217,-202.58152099,0.00015977,2]
[393608235,1762851038227,-151.0,0.00015977,2]
[393608236,1762851038237,-151.0,0.00015977,2]
[393608237,1762851038247,-151.0,0.00015977,2]
[393608238,1762851038260,-151.0,0.00015977,2]
[393608239,1762851038270,-151.0,0.00015977,2]
[393608240,1762851038279,-151.0,0.00015977,2]
[393608241,1762851038295,-151.0,0.00015977,2]
[393608242,1762851038307,-151.0,0.00015977,2]
[393608243,1762851038316,-151.0,0.00015977,2]
[393608244,1762851038326,-151.0,0.00015977,2]
[393608245,1762851038336,-151.0,0.00015977,2]
[393608246,1762851038346,-151.0,0.00015977,2]
[393608247,1762851038355,-151.0,0.00015977,2]
[393608248,1762851038365,-151.0,0.00015977,2]
[393608249,1762851038375,-151.0,0.00015977,2]
[393608250,1762851038385,-151.0,0.00015977,2]
[393608251,1762851038395,-151.0,0.00015977,2]
[393608252,1762851038404,-151.0,0.00015977,2]
[393608253,1762851038414,-151.0,0.00015977,2]
[393608254,1762851038423,-151.0,0.00015977,2]
[393608255,1762851038435,-151.0,0.00015977,2]
[393608256,1762851038444,-151.0,0.00015977,2]
[393608257,1762851038453,-151.0,0.00015977,2]
[393608258,1762851038463,-151.0,0.00015977,2]
[393608259,1762851038473,-151.0,0.00015977,2]
[393608260,1762851038484,-151.0,0.00015977,2]
[393608261,1762851038494,-151.0,0.00015977,2]
[393608262,1762851038503,-151.0,0.00015977,2]
[393608263,1762851038513,-151.0,0.00015977,2]
[393608264,1762851038523,-500.0,0.00015985,2]
[393608265,1762851038533,-58105.77547626,0.00015987,2]
[393608266,1762851038543,-510.0,0.0001613,2]
[393608267,1762851038552,-868.79,0.00016242,2]
[393608268,1762851038562,-215.2,0.00016264,2]
[393608269,1762851038572,-380.45247401,0.000164,2]
[393608270,1762851038582,-420.0,0.00016421,2]
[393608271,1762851038592,-500.0,0.00016438,2]
[393608272,1762851038602,-500.0,0.00016438,2]
[393608273,1762851038612,-413.97125399,0.00016438,2]
[393608274,1762851038623,-500.0,0.00016438,2]
[393608275,1762851038633,-2000.0,0.0001644,2]
[393608276,1762851038644,-1000.0,0.00016472,2]
[393608277,1762851038654,-150.0,0.00016481,2]
[393608278,1762851038664,-500.0,0.00016488,2]
[393608279,1762851038674,-1680.0,0.00016504,2]
[393608280,1762851038684,-300.0,0.00016504,2]
[393608281,1762851038694,-300.0,0.00016504,2]
[393608282,1762851038703,-300.0,0.00016504,2]
[393608283,1762851038713,-300.0,0.00016504,2]
[393608284,1762851038722,-320.9993931,0.00016504,2]
[393608285,1762851038731,-300.0,0.00016504,2]
[393608286,1762851038741,-195.0,0.00016504,2]
[393608287,1762851038751,-195.0,0.00016504,2]
[393608288,1762851038762,-2500.0,0.00016504,2]
[393608289,1762851038771,-150.26323377,0.00016506,2]
[393608290,1762851038781,-195.0,0.00016506,2]
[393608291,1762851038791,-172.4986946,0.00016506,2]
[393608292,1762851038800,-368.81733961,0.00016506,2]
[393608293,1762851038810,-250.0,0.00016506,2]
[393608294,1762851038820,-300.0,0.00016506,2]
[393608295,1762851038830,-2072.63,0.00016513,2]
[393608296,1762851038840,-868.79,0.00016516,2]
[393608297,1762851038850,-868.79,0.0001679,2]
[393608298,1762851038860,-215.2,0.00016793,2]
[393608299,1762851038869,-221.90321254,0.00016873,2]
[393608300,1762851038881,-500.0,0.00016918,2]
[393608301,1762851038890,-595.68,0.00016918,2]
[393608302,1762851038900,-452853.2143164,0.00016919,2]
[393608303,1762851038909,-476.03838915,0.00016973,2]
[393608304,1762851038919,-500.0,0.00016973,2]
[393608305,1762851038928,-500.0,0.00016973,2]
[393608306,1762851038938,-500.0,0.00016973,2]
[393608307,1762851038948,-309.3685034,0.00016973,2]
[393608308,1762851038959,-500.0,0.00016973,2]
[393608309,1762851038969,-502.69404323,0.00016973,2]
[393608310,1762851038979,-500.0,0.00016973,2]
[393608311,1762851038988,-500.0,0.00016973,2]
[393608312,1762851038998,-500.0,0.00016973,2]
[393608313,1762851039009,-500.31316522,0.00016973,2]
[393608314,1762851039018,-473.60389037,0.00016973,2]
[393608315,1762851039029,-500.0,0.00016973,2]
[393608316,1762851039039,-500.0,0.00016973,2]
[393608317,1762851039048,-171.74994195,0.00016973,2]
[393608318,1762851039057,-500.0,0.00016973,2]
[393608319,1762851039067,-500.0,0.00016973,2]
[393608320,1762851039077,-500.64822633,0.00016973,2]
[393608321,1762851039087,-500.0,0.00016973,2]
[393608322,1762851039096,-505.96815581,0.00016973,2]
[393608323,1762851039106,-500.0,0.00016973,2]
[393608324,1762851039116,-500.0,0.00016973,2]
[393608325,1762851039127,-200.32454822,0.00016973,2]
[393608326,1762851039138,-500.0,0.00016973,2]
[393608327,1762851039148,-500.0,0.00016973,2]
[393608328,1762851039158,-532.57477256,0.00016973,2]
[393608329,1762851039168,-164.23280861,0.00016973,2]
[393608330,1762851039177,-500.0,0.00016973,2]
[393608331,1762851039187,-32581.28,0.00016986,2]
[393608332,1762851039196,-250.0,0.00017,2]
[393608333,1762851039206,-868.79,0.00017064,2]
[393608334,1762851039215,-3975.31610557,0.00017095,2]
[393608335,1762851039224,-394.7,0.00017188,2]
[393608336,1762851039234,-974.19561683,0.00017199,2]
[393608337,1762851039244,-215.2,0.00017321,2]
[393608338,1762851039256,-868.79,0.00017338,2]